fUSD/lending_fUSD_20240712
["ID","MTS","AMOUNT","RATE_DAILY","PERIOD"]
[331795634,1720765898528,-500.0,0.00013972,2]
[331795635,1720765898539,-645.73,0.00013972,2]
[331795636,1720765898550,-609.33,0.00013972,2]
[331795637,1720765898563,-500.0,0.00013972,2]
[331795638,1720765898575,-1043.11,0.00013972,2]
[331795639,1720765898587,-500.0,0.00013972,2]
[331795640,1720765898599,-151.0,0.00013972,2]
[331795641,1720765898611,-654.803429,0.00013972,2]
[331795642,1720765898622,-577.94,0.00013972,2]
[331795643,1720765898632,-1001.09,0.00013972,2]
[331795644,1720765898641,-572.94,0.00013972,2]
[331795645,1720765898651,-654.803429,0.00013972,2]
[331795646,1720765898661,-826.26,0.00013972,2]
[331795647,1720765898670,-500.0,0.00013972,2]
[331795648,1720765898680,-863.68,0.00013972,2]
[331795649,1720765898689,-268.36,0.00013972,2]
[331795650,1720765898700,-500.0,0.00013972,2]
[331795651,1720765898710,-978.71,0.00013972,2]
[331795652,1720765898720,-927.14,0.00013972,2]
[331795653,1720765898730,-500.0,0.00013972,2]
[331795654,1720765898739,-1033.49,0.00013972,2]
[331795655,1720765898749,-500.0,0.00013972,2]
[331795656,1720765898759,-500.0,0.00013972,2]
[331795657,1720765898769,-584.99,0.00013972,2]
[331795658,1720765898778,-151.0,0.00013972,2]
[331795659,1720765898788,-1551.06,0.00013972,2]
[331795660,1720765898798,-151.0,0.00013972,2]
[331795661,1720765898809,-924.22,0.00013972,2]
[331795662,1720765898819,-294.143051,0.00013972,2]
[331795663,1720765898828,-500.0,0.00013972,2]
[331795664,1720765898838,-936.64,0.00013972,2]
[331795665,1720765898847,-500.0,0.00013972,2]
[331795666,1720765898857,-500.0,0.00013972,2]
[331795667,1720765898866,-523.9,0.00013972,2]
[331795668,1720765898876,-500.0,0.00013972,2]
[331795669,1720765898886,-500.0,0.00013972,2]
[331795670,1720765898897,-583.16,0.00013972,2]
[331795671,1720765898907,-1266.54,0.00013972,2]
[331795672,1720765898917,-500.0,0.00013972,2]
[331795673,1720765898926,-1145.72,0.00013972,2]
[331795674,1720765898936,-151.0,0.00013972,2]
[331795675,1720765898945,-500.0,0.00013972,2]
[331795676,1720765898955,-500.0,0.00013972,2]
[331795677,1720765898965,-628.89,0.00013972,2]
[331795678,1720765898975,-908.15,0.00013972,2]
[331795679,1720765898986,-1072.75,0.00013972,2]
[331795680,1720765898996,-617.45,0.00013972,2]
[331795681,1720765899005,-882.64,0.00013972,2]
[331795682,1720765899015,-500.0,0.00013972,2]
[331795683,1720765899025,-151.0,0.00013972,2]
[331795684,1720765899036,-151.0,0.00013972,2]
[331795685,1720765899046,-569.97164797,0.00013972,2]
[331795686,1720765899055,-500.0,0.00013972,2]
[331795687,1720765899065,-597.8,0.00013972,2]
[331795688,1720765899075,-1413.12,0.00013972,2]
[331795689,1720765899085,-500.0,0.00013972,2]
[331795690,1720765899094,-684.65,0.00013972,2]
[331795691,1720765899104,-1269.4,0.00013972,2]
[331795692,1720765899114,-1009.57,0.00013972,2]
[331795693,1720765899124,-820.34,0.00013972,2]
[331795694,1720765899133,-570.33,0.00013972,2]
[331795695,1720765899143,-751.75,0.00013972,2]
[331795696,1720765899154,-500.0,0.00013972,2]
[331795697,1720765899164,-500.0,0.00013972,2]
[331795698,1720765899173,-1287.67,0.00013972,2]
[331795699,1720765899182,-922.77,0.00013972,2]
[331795700,1720765899194,-500.0,0.00013972,2]
[331795701,1720765899205,-1345.39,0.00013972,2]
[331795702,1720765899214,-649.45,0.00013972,2]
[331795703,1720765899224,-172.69,0.00013972,2]
[331795704,1720765899234,-500.0,0.00013972,2]
[331795705,1720765899244,-536.18,0.00013972,2]
[331795706,1720765899254,-500.0,0.00013972,2]
[331795707,1720765899263,-895.96,0.00013972,2]
[331795708,1720765899273,-1632.41,0.00013972,2]
[331795709,1720765899282,-500.0,0.00013972,2]
[331795710,1720765899292,-566.55,0.00013972,2]
[331795711,1720765899302,-729.38,0.00013972,2]
[331795712,1720765899311,-500.0,0.00013972,2]
[331795713,1720765899321,-500.0,0.00013972,2]
[331795714,1720765899332,-500.0,0.00013972,2]
[331795715,1720765899341,-1661.47,0.00013972,2]
[331795716,1720765899351,-500.0,0.00013972,2]
[331795717,1720765899361,-208.565744,0.00013972,2]
[331795718,1720765899370,-208.565744,0.00013972,2]
[331795719,1720765899381,-1622.68,0.00013972,2]
[331795720,1720765899391,-208.565744,0.00013972,2]
[331795721,1720765899401,-1461.03,0.00013972,2]
[331795722,1720765899412,-208.565744,0.00013972,2]
[331795723,1720765899423,-500.0,0.00013972,2]
[331795724,1720765899433,-932.1,0.00013972,2]
[331795725,1720765899447,-600.18,0.00013972,2]
[331795726,1720765899456,-500.0,0.00013972,2]
[331795727,1720765899466,-652.76,0.00013972,2]
[331795728,1720765899475,-590.79,0.00013972,2]
[331795729,1720765899485,-649.76,0.00013972,2]
[331795730,1720765899496,-562.94,0.00013972,2]
[331795731,1720765899509,-500.0,0.00013972,2]
[331795732,1720765899520,-500.0,0.00013972,2]
[331795733,1720765899530,-500.0,0.00013972,2]
[331795734,1720765899541,-511.55,0.00013972,2]
[331795735,1720765899550,-500.0,0.00013972,2]
[331795736,1720765899560,-682.84,0.00013972,2]
[331795737,1720765899569,-208.27,0.00013972,2]
[331795738,1720765899580,-500.0,0.00013972,2]
[331795739,1720765899590,-557.92,0.00013972,2]
[331795740,1720765899600,-913.11,0.00013972,2]
[331795741,1720765899610,-500.0,0.00013972,2]
[331795742,1720765899794,-500.0,0.00013972,2]
[331795743,1720765899804,-665.1,0.00013972,2]
[331795744,1720765899814,-500.0,0.00013972,2]
[331795745,1720765899823,-647.57,0.00013972,2]
[331795746,1720765899833,-500.0,0.00013972,2]
[331795747,1720765899842,-655.14,0.00013972,2]
[331795748,1720765899851,-151.0,0.00013972,2]
[331795749,1720765899861,-1070.59,0.00013972,2]
[331795750,1720765899870,-151.0,0.00013972,2]
[331795751,1720765899879,-151.0,0.00013972,2]
[331795752,1720765899889,-500.0,0.00013972,2]
[331795753,1720765899898,-500.0,0.00013972,2]
[331795754,1720765899908,-500.0,0.00013972,2]
[331795755,1720765899918,-500.0,0.00013972,2]
[331795756,1720765899928,-549.77,0.00013972,2]
[331795757,1720765899937,-479.34850506,0.00013972,2]
[331795758,1720765899948,-955.34,0.00013972,2]
[331795759,1720765899957,-500.0,0.00013972,2]
[331795760,1720765899967,-500.0,0.00013972,2]
[331795761,1720765899977,-500.0,0.00013972,2]
[331795762,1720765899986,-500.0,0.00013972,2]
[331795763,1720765899996,-500.0,0.00013972,2]
[331795764,1720765900005,-572.55,0.00013972,2]
[331795765,1720765900015,-1087.88,0.00013972,2]
[331795766,1720765900025,-924.38,0.00013972,2]
[331795767,1720765900034,-500.0,0.00013972,2]
[331795768,1720765900044,-151.0,0.00013972,2]
[331795769,1720765900053,-151.0,0.00013972,2]
[331795770,1720765900062,-500.0,0.00013972,2]
[331795771,1720765900072,-212.27713645,0.00013972,2]
[331795772,1720765900081,-895.76,0.00013972,2]
[331795773,1720765900091,-573.75,0.00013972,2]
[331795774,1720765900101,-877.72,0.00013972,2]
[331795775,1720765900110,-811.35,0.00013972,2]
[331795776,1720765900120,-701.46,0.00013972,2]
[331795777,1720765900129,-500.0,0.00013972,2]
[331795778,1720765900139,-162.58,0.00013972,2]
[331795779,1720765900148,-951.0,0.00013972,2]
[331795780,1720765900157,-943.64,0.00013972,2]
[331795781,1720765900166,-500.0,0.00013972,2]
[331795782,1720765900175,-535.3,0.00013972,2]
[331795783,1720765900185,-500.0,0.00013972,2]
[331795784,1720765900195,-533.99,0.00013972,2]
[331795785,1720765900205,-500.0,0.00013972,2]
[331795786,1720765900216,-500.0,0.00013972,2]
[331795787,1720765900226,-500.0,0.00013972,2]
[331795788,1720765900236,-691.79,0.00013972,2]
[331795789,1720765900246,-500.0,0.00013972,2]
[331795790,1720765900255,-749.0,0.00013972,2]
[331795791,1720765900264,-646.61,0.00013972,2]
[331795792,1720765900274,-1153.39,0.00013972,2]
[331795793,1720765900283,-828.98,0.00013972,2]
[331795794,1720765900292,-500.0,0.00013972,2]
[331795795,1720765900301,-188.748856,0.00013972,2]
[331795796,1720765900311,-188.748856,0.00013972,2]
[331795797,1720765900320,-500.0,0.00013972,2]
[331795798,1720765900330,-797.92,0.00013972,2]
[331795799,1720765900339,-188.748856,0.00013972,2]
[331795800,1720765900348,-188.748856,0.00013972,2]
[331795801,1720765900357,-678.2,0.00013972,2]
[331795802,1720765900366,-500.0,0.00013972,2]
[331795803,1720765900375,-150.8,0.00013972,2]
[331795804,1720765900385,-742.09,0.00013972,2]
[331795805,1720765900393,-925.55,0.00013972,2]
[331795806,1720765900403,-718.26,0.00013972,2]
[331795807,1720765900413,-660.22,0.00013972,2]
[331795808,1720765900422,-500.0,0.00013972,2]
[331795809,1720765900431,-685.66,0.00013972,2]
[331795810,1720765900443,-616.92,0.00013972,2]
[331795811,1720765900452,-626.69,0.00013972,2]
[331795812,1720765900461,-578.66,0.00013972,2]
[331795813,1720765900471,-1182.27,0.00013972,2]
[331795814,1720765900480,-751.88,0.00013972,2]
[331795815,1720765900490,-500.0,0.00013972,2]
[331795816,1720765900502,-788.87,0.00013972,2]
[331795817,1720765900512,-589.96,0.00013972,2]
[331795818,1720765900521,-500.0,0.00013972,2]
[331795819,1720765900530,-1518.85,0.00013972,2]
[331795820,1720765900539,-500.0,0.00013972,2]
[331795821,1720765900549,-863.12,0.00013972,2]
[331795822,1720765900558,-500.0,0.00013972,2]
[331795823,1720765900568,-765.3,0.00013972,2]
[331795824,1720765900579,-1173.86,0.00013972,2]
[331795825,1720765900588,-500.0,0.00013972,2]
[331795826,1720765900598,-714.93,0.00013972,2]
[331795827,1720765900608,-500.0,0.00013972,2]
[331795828,1720765900617,-284.328778,0.00013972,2]
[331795829,1720765900626,-284.328778,0.00013972,2]
[331795830,1720765900635,-500.0,0.00013972,2]
[331795831,1720765900644,-284.328778,0.00013972,2]
[331795832,1720765900654,-500.0,0.00013972,2]
[331795833,1720765900663,-284.328778,0.00013972,2]
[331795834,1720765900672,-500.0,0.00013972,2]
[331795835,1720765900682,-889.91,0.00013972,2]
[331795836,1720765900693,-500.0,0.00013972,2]
[331795837,1720765900702,-797.27,0.00013972,2]
[331795838,1720765900711,-500.0,0.00013972,2]
[331795839,1720765900721,-500.0,0.00013972,2]
[331795840,1720765900730,-508.63,0.00013972,2]
[331795841,1720765900739,-500.0,0.00013972,2]
[331795842,1720765900749,-1002.89,0.00013972,2]
[331795843,1720765900758,-512.8,0.00013972,2]
[331795844,1720765900767,-905.0,0.00013972,2]
[331795845,1720765900777,-500.0,0.00013972,2]
[331795846,1720765900786,-209.9919,0.00013972,2]
[331795847,1720765900795,-500.0,0.00013972,2]
[331795848,1720765900804,-500.0,0.00013972,2]
[331795849,1720765900814,-500.0,0.00013972,2]
[331795850,1720765900823,-504.61,0.00013972,2]
[331795851,1720765900832,-414.949094,0.00013972,2]
[331795852,1720765900842,-500.0,0.00013972,2]
[331795853,1720765900851,-998.09,0.00013972,2]
[331795854,1720765900861,-472.920244,0.00013972,2]
[331795855,1720765900870,-414.949097,0.00013972,2]
[331795856,1720765900879,-1181.8,0.00013972,2]
[331795857,1720765900889,-472.920234,0.00013972,2]
[331795858,1720765900898,-500.0,0.00013972,2]
[331795859,1720765900908,-1111.86,0.00013972,2]
[331795860,1720765900917,-1692.88,0.00013972,2]
[331795861,1720765900926,-500.0,0.00013972,2]
[331795862,1720765900937,-500.0,0.00013972,2]
[331795863,1720765900946,-806.67,0.00013972,2]
[331795864,1720765900956,-151.0,0.00013972,2]
[331795865,1720765900966,-1115.55,0.00013972,2]
[331795866,1720765900976,-500.0,0.00013972,2]
[331795867,1720765900985,-1152.37,0.00013972,2]
[331795868,1720765900995,-500.0,0.00013972,2]
[331795869,1720765901005,-500.0,0.00013972,2]
[331795870,1720765901014,-1099.21,0.00013972,2]
[331795871,1720765901024,-500.0,0.00013972,2]
[331795872,1720765901034,-500.0,0.00013972,2]
[331795873,1720765901044,-500.0,0.00013972,2]
[331795874,1720765901053,-500.0,0.00013972,2]
[331795875,1720765901062,-500.0,0.00013972,2]
[331795876,1720765901071,-500.0,0.00013972,2]
[331795877,1720765901081,-958.58,0.00013972,2]
[331795878,1720765901090,-500.0,0.00013972,2]
[331795879,1720765901099,-1435.54,0.00013972,2]
[331795880,1720765901111,-500.0,0.00013972,2]
[331795881,1720765901121,-500.0,0.00013972,2]
[331795882,1720765901131,-933.39,0.00013972,2]
[331795883,1720765901140,-885.22,0.00013972,2]
[331795884,1720765901150,-500.0,0.00013972,2]
[331795885,1720765901159,-525.55,0.00013972,2]
[331795886,1720765901169,-151.0,0.00013972,2]
[331795887,1720765901178,-578.47,0.00013972,2]
[331795888,1720765901189,-500.0,0.00013972,2]
[331795889,1720765901198,-585.1,0.00013972,2]
[331795890,1720765901207,-768.43,0.00013972,2]
[331795891,1720765901217,-500.0,0.00013972,2]
[331795892,1720765901227,-1131.03,0.00013972,2]
[331795893,1720765901237,-500.66,0.00013972,2]
[331795894,1720765901247,-519.84688122,0.00013972,2]
[331795895,1720765901256,-1387.16,0.00013972,2]
[331795896,1720765901265,-769.71,0.00013972,2]
[331795897,1720765901276,-929.61,0.00013972,2]
[331795898,1720765901287,-592.67,0.00013972,2]
[331795899,1720765901296,-500.0,0.00013972,2]
[331795900,1720765901305,-557.92,0.00013972,2]
[331795901,1720765901315,-1164.92,0.00013972,2]
[331795902,1720765901324,-1195.55,0.00013972,2]
[331795903,1720765901334,-372.988082,0.00013972,2]
[331795904,1720765901346,-372.988082,0.00013972,2]
[331795905,1720765901358,-500.0,0.00013972,2]
[331795906,1720765901369,-832.05,0.00013972,2]
[331795907,1720765901379,-1157.39,0.00013972,2]
[331795908,1720765901389,-965.25,0.00013972,2]
[331795909,1720765901399,-1057.96,0.00013972,2]
[331795910,1720765901412,-500.0,0.00013972,2]
[331795911,1720765901423,-500.0,0.00013972,2]
[331795912,1720765901433,-500.0,0.00013972,2]
[331795913,1720765901444,-500.0,0.00013972,2]
[331795914,1720765901453,-663.73,0.00013972,2]
[331795915,1720765901462,-151.0,0.00013972,2]
[331795916,1720765901472,-996.83,0.00013972,2]
[331795917,1720765901482,-778.42,0.00013972,2]
[331795918,1720765901493,-500.94,0.00013972,2]
[331795919,1720765901506,-500.0,0.00013972,2]
[331795920,1720765901516,-500.0,0.00013972,2]
[331795921,1720765901527,-1011.24,0.00013972,2]
[331795922,1720765901537,-500.0,0.00013972,2]
[331795923,1720765901546,-500.0,0.00013972,2]
[331795924,1720765901558,-724.27,0.00013972,2]
[331795925,1720765901567,-500.0,0.00013972,2]
[331795926,1720765901579,-948.7,0.00013972,2]
[331795927,1720765901588,-1338.17,0.00013972,2]
[331795928,1720765901599,-500.0,0.00013972,2]
[331795929,1720765901609,-894.67,0.00013972,2]
[331795930,1720765901619,-500.0,0.00013972,2]
[331795931,1720765901631,-500.0,0.00013972,2]
[331795932,1720765901640,-691.16,0.00013972,2]
[331795933,1720765901650,-706.91,0.00013972,2]
[331795934,1720765901659,-500.0,0.00013972,2]
[331795935,1720765901670,-500.0,0.00013972,2]
[331795936,1720765901679,-1648.59,0.00013972,2]
[331795937,1720765901690,-579.34,0.00013972,2]
[331795938,1720765901699,-401.16825759,0.00013972,2]
[331795939,1720765901708,-210.966587,0.00013972,2]
[331795940,1720765901718,-534.75,0.00013972,2]
[331795941,1720765901727,-6673.84,0.00013972,2]
[331795942,1720765901736,-210.966595,0.00013972,2]
[331795943,1720765901747,-500.0,0.00013972,2]
[331795944,1720765901758,-791.66,0.00013972,2]
[331795945,1720765901769,-868.6,0.00013972,2]
[331795946,1720765901779,-503.87,0.00013972,2]
[331795947,1720765901790,-500.0,0.00013972,2]
[331795948,1720765901799,-500.0,0.00013972,2]
[331795949,1720765901809,-500.0,0.00013972,2]
[331795950,1720765901819,-500.0,0.00013972,2]
[331795951,1720765901829,-1463.05,0.00013972,2]
[331795952,1720765901839,-500.0,0.00013972,2]
[331795953,1720765901848,-1711.11,0.00013972,2]
[331795954,1720765901857,-776.49,0.00013972,2]
[331795955,1720765901867,-500.0,0.00013972,2]
[331795956,1720765901876,-940.12,0.00013972,2]
[331795957,1720765901886,-500.0,0.00013972,2]
[331795958,1720765901895,-500.0,0.00013972,2]
[331795959,1720765901905,-500.0,0.00013972,2]
[331795960,1720765901914,-1103.87,0.00013972,2]
[331795961,1720765901923,-838.82,0.00013972,2]
[331795962,1720765901933,-500.0,0.00013972,2]
[331795963,1720765901943,-906.68,0.00013972,2]
[331795964,1720765901954,-774.99,0.00013972,2]
[331795965,1720765901963,-500.0,0.00013972,2]
[331795966,1720765901973,-1574.49,0.00013972,2]
[331795967,1720765901983,-1003.46,0.00013972,2]
[331795968,1720765901992,-715.19,0.00013972,2]
[331795969,1720765902002,-2671.99,0.00013972,2]
[331795970,1720765902012,-500.0,0.00013972,2]
[331795971,1720765902021,-811.17,0.00013972,2]
[331795972,1720765902030,-1169.16,0.00013972,2]
[331795973,1720765902039,-804.64,0.00013972,2]
[331795974,1720765902048,-516.06,0.00013972,2]
[331795975,1720765902057,-500.0,0.00013972,2]
[331795976,1720765902067,-500.0,0.00013972,2]
[331795977,1720765902075,-913.43,0.00013972,2]
[331795978,1720765902084,-1567.42,0.00013972,2]
[331795979,1720765902094,-1123.97,0.00013972,2]
[331795980,1720765902103,-1159.17,0.00013972,2]
[331795981,1720765902112,-7796.51,0.00013972,2]
[331795982,1720765902122,-682.47,0.00013972,2]
[331795983,1720765902131,-3427.86,0.00013972,2]
[331795984,1720765902140,-884.1,0.00013972,2]
[331795985,1720765902149,-761.42,0.00013972,2]
[331795986,1720765902158,-500.0,0.00013972,2]
[331795987,1720765902167,-500.0,0.00013972,2]
[331795988,1720765902176,-500.0,0.00013972,2]
[331795989,1720765902187,-500.0,0.00013972,2]
[331795990,1720765902197,-2349.61,0.00013972,2]
[331795991,1720765902206,-2824.19,0.00013972,2]
[331795992,1720765902215,-544.06,0.00013972,2]
[331795993,1720765902224,-1413.14,0.00013972,2]
[331795994,1720765902234,-500.0,0.00013972,2]
[331795995,1720765902243,-500.0,0.00013972,2]
[331795996,1720765902252,-500.0,0.00013972,2]
[331795997,1720765902262,-746.16,0.00013972,2]
[331795998,1720765902271,-1040.64,0.00013972,2]
[331795999,1720765902280,-565.8,0.00013972,2]
[331796000,1720765902290,-568.05,0.00013972,2]
[331796001,1720765902299,-1225.06,0.00013972,2]
[331796002,1720765902308,-500.0,0.00013972,2]
[331796003,1720765902317,-945.48,0.00013972,2]
[331796004,1720765902327,-502.01,0.00013972,2]
[331796005,1720765902336,-1864.03,0.00013972,2]
[331796006,1720765902345,-500.0,0.00013972,2]
[331796007,1720765902354,-782.62,0.00013972,2]
[331796008,1720765902363,-3139.48,0.00013972,2]
[331796009,1720765902372,-760.77,0.00013972,2]
[331796010,1720765902381,-967.92,0.00013972,2]
[331796011,1720765902390,-817.59,0.00013972,2]
[331796012,1720765902400,-672.02,0.00013972,2]
[331796013,1720765902409,-500.0,0.00013972,2]
[331796014,1720765902418,-500.0,0.00013972,2]
[331796015,1720765902427,-1369.87,0.00013972,2]
[331796016,1720765902438,-503.52,0.00013972,2]
[331796017,1720765902448,-927.94,0.00013972,2]
[331796018,1720765902457,-500.0,0.00013972,2]
[331796019,1720765902467,-500.0,0.00013972,2]
[331796020,1720765902476,-500.0,0.00013972,2]
[331796021,1720765902485,-510.11,0.00013972,2]
[331796022,1720765902494,-883.29,0.00013972,2]
[331796023,1720765902506,-500.0,0.00013972,2]
[331796024,1720765902516,-500.0,0.00013972,2]
[331796025,1720765902525,-703.12,0.00013972,2]
[331796026,1720765902534,-1249.82,0.00013972,2]
[331796027,1720765902544,-698.85,0.00013972,2]
[331796028,1720765902555,-513.61,0.00013972,2]
[331796029,1720765902564,-500.0,0.00013972,2]
[331796030,1720765902574,-500.0,0.00013972,2]
[331796031,1720765902584,-500.0,0.00013972,2]
[331796032,1720765902594,-3390.01,0.00013972,2]
[331796033,1720765902603,-214.158926,0.00013972,2]
[331796034,1720765902612,-522.91,0.00013972,2]
[331796035,1720765902621,-977.7,0.00013972,2]
[331796036,1720765902631,-500.0,0.00013972,2]
[331796037,1720765902640,-641.99,0.00013972,2]
[331796038,1720765902649,-214.158916,0.00013972,2]
[331796039,1720765902658,-853.13,0.00013972,2]
[331796040,1720765902668,-760.44,0.00013972,2]
[331796041,1720765902678,-534.54,0.00013972,2]
[331796042,1720765902688,-500.0,0.00013972,2]
[331796043,1720765902697,-789.27,0.00013972,2]
[331796044,1720765902706,-1308.59,0.00013972,2]
[331796045,1720765902715,-500.0,0.00013989,2]
[331796046,1720765902723,-500.0,0.00013989,2]
[331796047,1720765902733,-500.0,0.00013989,2]
[331796048,1720765902742,-389.44402368,0.00013989,2]
[331796049,1720765902751,-240422.59523227,0.0001399,2]
[331796050,1720765902761,-164.270083,0.0001399,2]
[331796051,1720765902770,-151.0,0.0001399,2]
[331796052,1720765902779,-151.0,0.0001399,2]
[331796053,1720765902788,-297.873096,0.0001399,2]
[331796054,1720765902798,-151.552248,0.0001399,2]
[331796055,1720765902807,-151.0,0.0001399,2]
[331796056,1720765902816,-151.0,0.0001399,2]
[331796057,1720765902825,-151.0,0.0001399,2]
[331796058,1720765902834,-151.0,0.0001399,2]
[331796059,1720765902844,-164.833302,0.0001399,2]
[331796060,1720765902853,-164.833302,0.0001399,2]
[331796061,1720765902863,-151.0,0.0001399,2]
[331796062,1720765902872,-151.0,0.0001399,2]
[331796063,1720765902882,-151.0,0.0001399,2]
[331796064,1720765902891,-151.0,0.0001399,2]
[331796065,1720765902900,-151.0,0.0001399,2]
[331796066,1720765902910,-184.877998,0.0001399,2]
[331796067,1720765902919,-184.877998,0.0001399,2]
[331796068,1720765902928,-191.349304,0.0001399,2]
[331796069,1720765902938,-184.427444,0.0001399,2]
[331796070,1720765902948,-184.427444,0.0001399,2]
[331796071,1720765902957,-191.349304,0.0001399,2]
[331796072,1720765902966,-315.615147,0.0001399,2]
[331796073,1720765902976,-315.615147,0.0001399,2]
[331796074,1720765902985,-246.154884,0.0001399,2]
[331796075,1720765902995,-654.803429,0.0001399,2]
[331796076,1720765903004,-654.803429,0.0001399,2]
[331796077,1720765903013,-151.0,0.0001399,2]
[331796078,1720765903023,-247.964503,0.0001399,2]
[331796079,1720765903033,-151.0,0.0001399,2]
[331796080,1720765903042,-208.565744,0.0001399,2]
[331796081,1720765903052,-208.565748,0.0001399,2]
[331796082,1720765903061,-171.03124,0.0001399,2]
[331796083,1720765903071,-151.0,0.0001399,2]
[331796084,1720765903081,-151.0,0.0001399,2]
[331796085,1720765903090,-188.748856,0.0001399,2]
[331796086,1720765903100,-188.748856,0.0001399,2]
[331796087,1720765903110,-5110.973014,0.00013996,2]
[331796088,1720765903120,-1758.1735189,0.00013996,2]
[331796089,1720765903130,-500.0,0.00013999,2]
[331796090,1720765903139,-500.0,0.00013999,2]
[331796091,1720765903149,-500.0,0.00013999,2]
[331796092,1720765903159,-500.0,0.00013999,2]
[331796093,1720765903168,-602.01,0.00013999,2]
[331796094,1720765903178,-500.0,0.00013999,2]
[331796095,1720765903187,-500.0,0.00013999,2]
[331796096,1720765903203,-500.0,0.00013999,2]
[331796097,1720765903213,-514.27,0.00013999,2]
[331796098,1720765903223,-550.4432963,0.00013999,2]
[331796099,1720765903403,-227.32181018,0.00013999,2]
[331796100,1720765903413,-155.0,0.00013999,2]
[331796101,1720765903423,-155.0,0.00013999,2]
[331796102,1720765903433,-9047.0,0.00014,2]
[331796103,1720765903445,-697115.90480761,0.00014,2]
[331796104,1720765903454,-2000.0,0.00014,2]
[331796105,1720765903464,-502.14816842,0.00014,2]
[331796106,1720765903474,-500.0,0.00014,2]
[331796107,1720765903484,-1082565.64200828,0.00014,2]
[331796108,1720765903494,-2000.0,0.00014,2]
[331796109,1720765903506,-2000.0,0.00014,2]
[331796110,1720765903517,-158.92801915,0.00014,2]
[331796111,1720765903527,-1125695.03472889,0.00014,2]
[331796112,1720765903538,-261.0,0.00014,2]
[331796113,1720765903548,-396.0,0.00014,2]
[331796114,1720765903558,-216.0,0.00014,2]
[331796115,1720765903568,-216.0,0.00014,2]
[331796116,1720765903579,-216.0,0.00014,2]
[331796117,1720765903588,-216.0,0.00014,2]
[331796118,1720765903598,-216.0,0.00014,2]
[331796119,1720765903608,-216.0,0.00014,2]
[331796120,1720765903618,-264.0,0.00014,2]
[331796121,1720765903628,-5000.0,0.00014,2]
[331796122,1720765903637,-1572.0,0.00014,2]
[331796123,1720765903646,-201.0,0.00014,2]
[331796124,1720765903656,-201.0,0.00014,2]
[331796125,1720765903665,-201.0,0.00014,2]
[331796126,1720765903675,-201.0,0.00014,2]
[331796127,1720765903684,-201.0,0.00014,2]
[331796128,1720765903697,-201.0,0.00014,2]
[331796129,1720765903706,-201.0,0.00014,2]
[331796130,1720765903715,-201.0,0.00014,2]
[331796131,1720765903725,-201.0,0.00014,2]
[331796132,1720765903737,-164.270083,0.00014,2]
[331796133,1720765903746,-164.270083,0.00014,2]